bitfinex-derivatives/quotes_ETHF0:USTF0_20250606
["timestamp","ask_amount","ask_price","bid_price","bid_amount"]
[1749230696032,0.00601058,2494.5,2494.2,12.64656253]
[1749230696033,0.00601058,2494.5,2494.2,11.05812]
[1749230696235,0.80109,2494.4,2494.3,2.39574116]
[1749230696528,0.80109,2494.4,2494.3,5.60354116]
[1749230698631,0.80109,2494.4,2494.3,4.80243116]
[1749230698831,0.80109,2494.4,2494.3,8.48143116]
[1749230699032,0.80109,2494.4,2494.3,7.68792]
[1749230699626,0.80109,2494.4,2494.3,9.28255116]
[1749230700427,0.80109,2494.4,2494.3,8.48143116]
[1749230700634,8.53857139,2494.4,2494.3,3.679]
[1749230700835,9.82157139,2494.4,2494.3,3.679]
[1749230703532,0.80125,2493.9,2493.8,1.59463116]
[1749230703737,3.4429658,2493.8,2493.5,2.38266379]
[1749230703931,0.80135,2493.6,2493.5,0.80138]
[1749230704135,0.80138,2493.5,2493.4,5.94741]
[1749230704339,0.80141,2493.4,2493.3,4.5663]
[1749230704637,0.80141,2493.4,2493.3,9.7123]
[1749230704832,0.80141,2493.4,2493.3,10.51374]
[1749230705136,0.80141,2493.4,2493.3,9.0426]
[1749230705328,0.80141,2493.4,2493.3,5.146]
[1749230706133,0.80141,2493.4,2493.3,5.94744]
[1749230706441,0.8014,2493.5,2493.4,0.80138]
[1749230707043,4.2443658,2493.5,2493.4,0.80138]
[1749230707536,0.8014,2493.5,2493.4,0.87271351]
[1749230707741,4.2443658,2493.5,2493.4,0.87271351]
[1749230708634,4.2443658,2493.5,2493.4,0.80138]
[1749230708834,0.80141,2493.4,2493.3,5.94742]
[1749230709034,4.2443758,2493.4,2493.3,5.94742]
[1749230709337,0.80141,2493.4,2493.3,5.94742]
[1749230709842,4.2443758,2493.4,2493.3,5.146]
[1749230710141,0.80148,2493.3,2493.2,0.80146]
[1749230710338,4.2444458,2493.3,2493.2,0.80146]
[1749230710541,0.80148,2493.3,2493.2,0.80146]
[1749230711244,0.80137,2493.6,2493.5,0.80135]
[1749230714340,0.80141,2493.5,2493.3,4.5393]
[1749230714645,0.80141,2493.5,2493.4,0.80138]
[1749230715036,0.80136,2493.6,2493.5,0.80135]
[1749230715238,4.2443258,2493.6,2493.5,0.80135]
[1749230715439,0.80136,2493.6,2493.5,0.80135]
[1749230718346,1.46813,2493.7,2493.6,0.80135]
[1749230718549,3.4429658,2493.6,2493.5,0.80138]
[1749230718940,0.80135,2493.6,2493.5,0.80138]
[1749230720047,0.80141,2493.5,2493.4,0.80138]
[1749230720255,4.2443758,2493.4,2493.3,3.2078]
[1749230720539,3.8739,2493.8,2493.6,0.80135]
[1749230720745,0.80136,2493.7,2493.6,0.80135]
[1749230720939,0.80135,2493.6,2493.5,0.87268351]
[1749230721138,4.2443158,2493.6,2493.5,0.07133351]
[1749230721444,5.5907158,2493.6,2493.5,0.07133351]
[1749230721854,0.80141,2493.4,2493.3,4.00923]
[1749230722150,4.2443758,2493.4,2493.3,4.00923]
[1749230722835,0.80144,2493.3,2493.2,0.80147]
[1749230723247,4.2444058,2493.3,2493.2,0.80147]
[1749230723748,2.0038,2493.1,2492.8,5.148]
[1749230724042,3.4429658,2492.9,2492.6,3.2078]
[1749230724235,0.80173,2492.4,2492.3,9.80572]
[1749230724435,0.80173,2492.4,2492.3,9.15752]
[1749230724644,5.4473158,2492.4,2491.8,1.3077]
[1749230724844,6.6507658,2492.2,2491.8,1.3077]
[1749230725047,7.4525758,2492.2,2492.1,0.80183]
[1749230725246,4.00961,2492.2,2492.1,0.80183]
[1749230725441,0.80192,2491.8,2491.7,5.148]
[1749230725748,3.4429658,2491.8,2491.6,0.80197]
[1749230725944,3.4429658,2491.8,2491.7,0.80196]
[1749230726947,3.4429658,2491.8,2491.5,0.80201]
[1749230726948,0.802,2491.6,2491.5,0.80201]
[1749230727149,4.2449658,2491.6,2491.5,0.80201]
[1749230727553,0.80203,2491.5,2491.4,0.80204]
[1749230727849,3.4429658,2491.3,2491.2,6.54012]
[1749230728238,0.802,2491.6,2491.5,0.802]
[1749230728648,4.2449658,2491.6,2491.5,0.802]
[1749230729252,3.4429658,2491.6,2491.2,5.738]
[1749230729451,3.4429658,2491.4,2491.3,0.80209]
[1749230729848,3.4429658,2491.4,2491.1,5.058]
[1749230730048,3.4429658,2491.2,2491.1,0.80215]
[1749230730254,3.4429658,2491.2,2490.7,0.6582]
[1749230730255,3.4429658,2491.2,2489.8,2.00639]
[1749230730256,27.1538,2491.2,2489.8,2.00639]
[1749230730554,3.21382301,2490.7,2490.6,0.80231]
[1749230730943,0.00602301,2490.7,2490.6,0.80231]
[1749230731248,3.01e-06,2490.7,2490.6,0.80231]
[1749230731853,3.01e-06,2490.7,2490.6,2.15221]
[1749230732152,3.01e-06,2490.7,2490.6,0.80231]
[1749230732153,2.60430881,2490.7,2490.6,0.80231]
[1749230732557,5.81210881,2490.7,2490.6,0.80231]
[1749230733044,7.08690881,2490.7,2490.6,0.80231]
[1749230733757,5.81210881,2490.7,2490.6,0.80231]
[1749230734953,5.81210881,2490.7,2490.6,0.87364351]
[1749230735946,3.20780301,2490.7,2490.6,0.87364351]
[1749230737257,3.01e-06,2490.7,2490.6,0.87364351]
[1749230737445,3.01e-06,2490.7,2490.6,2.14414351]
[1749230737952,3.01e-06,2490.7,2490.6,5.93264351]
[1749230738349,3.01e-06,2490.7,2490.6,0.87364351]
[1749230738546,3.40658881,2490.7,2490.6,0.07133351]
[1749230738852,0.80234,2490.5,2490.4,0.00602301]
[1749230739155,6.6144458,2490.5,2490.4,0.00602301]
[1749230739546,6.6144458,2490.5,2490.4,0.80839301]
[1749230739547,7.9273458,2490.5,2490.4,0.80839301]
[1749230739854,7.9273458,2490.5,2490.4,0.00602301]
[1749230740245,0.80245,2490.2,2490.1,0.80245]
[1749230740446,5.8121058,2490.2,2489.6,2.00653]
[1749230740645,1.3172,2490.1,2490.0,0.8025]
[1749230740853,2.11967,2490.1,2490.0,0.8025]
[1749230741046,0.80252,2490.0,2489.9,0.80251]
[1749230741247,3.9215058,2490.0,2489.9,0.80251]
[1749230742158,4.7240058,2490.0,2489.9,0.80251]
[1749230742356,3.9215058,2490.0,2489.9,0.80251]
[1749230743256,2.6043058,2490.0,2489.9,0.80251]
[1749230744055,0.8025,2490.1,2490.0,0.80249]
[1749230744356,0.80255,2489.9,2489.8,0.80253]
[1749230744555,4.01035,2489.9,2489.8,0.80253]
[1749230744761,4.01035,2489.9,2489.5,1.43214]
[1749230744762,0.80263,2489.6,2489.5,1.43214]
[1749230745059,0.80275,2489.3,2489.2,0.80273]
[1749230745267,3.4070558,2489.3,2489.2,0.80273]
[1749230745561,2.6043058,2489.3,2489.2,0.80273]
[1749230745951,0.00602301,2489.5,2489.4,0.8027]
[1749230746250,3.01e-06,2489.5,2489.4,4.0105]
[1749230746649,3.01e-06,2489.5,2489.4,2.1827]
[1749230747951,3.01e-06,2489.5,2489.4,7.2447]
[1749230748460,3.01e-06,2489.5,2489.4,10.4525]
[1749230748962,5.061,2490.3,2490.2,0.80244]
[1749230749258,5.86341,2490.3,2490.2,0.80244]
[1749230749450,3.4067158,2490.3,2490.2,0.80244]
[1749230749651,2.0061,2490.2,2489.6,1.38]
[1749230749853,2.6043058,2489.7,2489.4,0.07133351]
[1749230750057,2.6043058,2489.5,2489.4,0.87401351]
[1749230750563,0.80264,2489.6,2489.5,0.80264]
[1749230750764,0.80262,2489.7,2489.6,0.80262]
[1749230751266,3.4069258,2489.7,2489.6,0.80262]
[1749230751453,0.80265,2489.6,2489.5,0.80264]
[1749230751863,3.4069558,2489.6,2489.5,0.80264]
[1749230752359,0.80266,2489.5,2489.4,0.07133351]
[1749230752566,7.8894658,2489.5,2489.4,0.87403351]
[1749230752965,2.6043058,2489.5,2489.4,0.87403351]
[1749230753365,3.4069658,2489.5,2489.4,0.87403351]
[1749230755557,2.6043058,2489.5,2489.4,0.87403351]
[1749230756158,0.80264,2489.7,2489.6,0.80263]
[1749230756560,0.80266,2489.5,2489.4,0.87401351]
[1749230756761,6.6147658,2489.5,2489.4,0.87401351]
[1749230757061,5.8121058,2489.5,2489.4,0.87401351]
[1749230757364,3.2078,2489.5,2489.4,0.87401351]
[1749230757864,3.2078,2489.5,2489.4,1.42565201]
[1749230758267,0.80262,2489.7,2489.6,0.80263]
[1749230758865,3.4069258,2489.7,2489.6,0.80263]
[1749230759063,2.6043058,2489.7,2489.6,0.80263]
[1749230760363,3.4069058,2489.7,2489.6,0.80263]
[1749230760868,0.80266,2489.6,2489.5,0.80265]
[1749230761064,0.80266,2489.5,2489.4,1.51890351]
[1749230761265,3.4069558,2489.6,2489.5,0.80266]
[1749230761463,2.6043058,2489.6,2489.5,1.35569863]
[1749230761771,2.6043058,2489.6,2489.5,1.35586862]
[1749230761955,2.6043058,2489.6,2489.5,1.35586879]
[1749230762156,4.01042,2489.7,2489.6,0.80263]
[1749230762361,5.8121058,2489.7,2489.6,0.80263]
[1749230762566,2.6043058,2489.7,2489.6,1.35582318]
[1749230762963,2.6043058,2489.7,2489.6,1.35582612]
[1749230763270,0.00602301,2489.8,2489.7,0.8026]
[1749230763466,0.00602301,2489.8,2489.7,1.35578272]
[1749230763665,0.80264,2489.7,2489.6,0.80262]
[1749230763867,3.4069658,2489.5,2489.4,0.07133351]
[1749230764564,2.6043058,2489.5,2489.4,0.87403351]
[1749230765769,3.2078,2489.7,2489.6,0.80263]
[1749230765966,5.8121058,2489.7,2489.6,0.80263]
[1749230766168,6.6147058,2489.7,2489.6,0.80263]
[1749230766366,0.00602301,2489.8,2489.7,0.8026]
[1749230770277,0.80859301,2489.8,2489.7,0.8026]
[1749230771068,0.8026,2489.7,2489.6,0.8026]
[1749230771279,0.80263,2489.6,2489.5,7.47082485]
[1749230771481,0.80263,2489.6,2489.5,0.80266]
[1749230771682,0.80266,2489.5,2489.4,2.45816836]
[1749230771878,0.80266,2489.5,2489.4,1.65549836]
[1749230772188,3.4069658,2489.5,2489.4,0.07133351]
[1749230772386,5.4767658,2489.5,2489.4,0.07133351]
[1749230772780,5.4767658,2489.5,2489.4,0.87403351]
[1749230773081,5.4767658,2489.5,2489.4,0.07133351]
[1749230774881,0.80273,2489.3,2489.2,0.00602301]
[1749230775082,6.6148358,2489.3,2489.2,0.00602301]
[1749230776187,6.6148358,2489.3,2488.8,2.38704485]
[1749230776188,0.80286,2488.9,2488.8,2.38705485]
[1749230776486,0.80286,2488.9,2488.8,0.80289]
[1749230776487,2.6043058,2488.9,2488.8,0.80289]
[1749230776989,3.4071658,2488.9,2488.8,0.80289]
[1749230777288,0.80289,2488.8,2488.7,2.38706485]
[1749230777478,0.80289,2488.8,2488.6,8.77849485]
[1749230777479,0.80292,2488.7,2488.6,8.77849485]
[1749230777679,6.6150258,2488.7,2488.6,5.084]
[1749230777879,0.80296,2488.6,2488.5,0.80297]
[1749230778682,4.01075,2488.7,2488.6,0.80296]
[1749230779185,6.6150558,2488.7,2488.6,0.80296]
[1749230779384,0.803,2488.5,2488.4,0.80299]
[1749230779588,0.80298,2488.6,2488.5,0.80297]
[1749230779789,3.4073158,2488.5,2488.4,0.803]
[1749230780484,3.8697,2488.7,2488.6,0.80295]
[1749230780685,1.48667,2488.9,2488.8,0.80289]
[1749230780880,4.0909858,2488.9,2488.8,0.80289]
[1749230781185,0.80292,2488.8,2488.7,0.80291]
[1749230781388,3.4072258,2488.7,2488.6,0.80294]
[1749230781687,2.6043058,2488.7,2488.6,0.80294]
[1749230781881,4.01071,2488.8,2488.7,0.80292]
[1749230782077,6.6150158,2488.8,2488.7,0.80292]
[1749230782891,5.8121058,2488.8,2488.7,0.80292]
[1749230783090,6.6149958,2488.8,2488.7,0.80292]
[1749230783290,0.80298,2488.6,2488.5,0.80296]
[1749230783696,0.80294,2488.7,2488.6,0.80293]
[1749230783991,3.4072458,2488.7,2488.6,0.80293]
[1749230786393,0.803,2488.5,2488.4,0.80299]
[1749230786791,0.80305,2488.4,2488.3,0.80305]
[1749230786989,3.4073558,2488.3,2488.2,7.21556]
[1749230787186,2.6043058,2488.3,2487.9,1.58416485]
[1749230787494,2.6043058,2488.3,2487.5,6.38468506]
[1749230787495,2.6043058,2488.0,2487.5,5.21605]
[1749230787691,3.4075258,2487.8,2487.7,0.80325]
[1749230787898,4.6125258,2487.6,2487.0,1.58416485]
[1749230788100,0.80343,2487.2,2486.9,5.42417417]
[1749230788288,2.6043058,2487.0,2486.9,0.8035]
[1749230788598,0.00602301,2487.2,2487.1,0.80344]
[1749230789692,0.00602301,2487.2,2487.0,0.80345]
[1749230789886,0.00602301,2487.2,2487.0,2.10674]
[1749230790196,0.00602301,2487.2,2487.1,0.80344]
[1749230790400,0.80347,2487.0,2486.9,3.2078]
[1749230790601,2.6043058,2487.0,2486.9,0.8035]
[1749230791197,0.00602301,2487.2,2486.7,2.6854]
[1749230791394,3.4077558,2487.1,2487.0,0.80347]
[1749230791595,2.6043058,2487.1,2487.0,0.80347]
[1749230792401,0.80945301,2487.2,2487.0,0.80347]
[1749230792597,2.6043058,2487.1,2487.0,0.80347]
[1749230793103,0.80945301,2487.2,2487.0,0.80347]
[1749230793303,2.00881,2486.9,2485.9,4.79196485]
[1749230793497,0.80379,2486.0,2485.9,3.2078]
[1749230793800,0.80386,2485.8,2485.7,0.16059001]
[1749230794018,3.4081658,2485.8,2485.7,0.16059001]
[1749230794192,1.3354,2486.1,2485.7,0.96446001]
[1749230794397,2.6043058,2485.8,2485.7,0.96447001]
[1749230794599,2.6043058,2485.8,2485.7,0.96448001]
[1749230794799,2.13919,2486.1,2485.7,0.16059001]
[1749230794998,3.2078,2486.2,2485.8,2.0176]
[1749230795201,2.6043058,2486.0,2485.8,2.16724]
[1749230795402,6.3546,2486.4,2485.8,2.16724]
[1749230795403,2.6043058,2486.1,2486.0,0.80377]
[1749230795597,0.80371,2486.3,2486.0,0.80377]
[1749230795800,3.2078,2486.8,2486.0,8.2358]
[1749230796110,3.2078,2486.8,2486.7,0.80357]
[1749230796306,2.6043058,2486.5,2486.1,1.3554]
[1749230796605,2.6043058,2486.5,2486.3,0.80369]
[1749230796806,2.6043058,2486.5,2486.4,0.80367]
[1749230797003,3.4079358,2486.5,2486.3,0.80368]
[1749230797201,2.6043058,2486.5,2486.1,1.3554]
[1749230797600,3.2078,2486.8,2486.1,3.36477]
[1749230797804,2.6043058,2486.7,2486.6,0.8036]
[1749230798003,3.2078,2486.8,2486.2,2.00933]
[1749230798004,5.8121058,2486.8,2486.7,0.80357]
[1749230798206,4.01135,2486.8,2486.6,0.80358]
[1749230798408,3.2078,2486.8,2486.7,0.80357]
[1749230798608,2.6043058,2486.7,2486.6,0.80358]
[1749230798902,2.6043058,2486.7,2486.6,2.11418]
[1749230799109,2.6043058,2486.7,2486.5,0.6503]
[1749230799110,3.2078,2486.8,2486.5,0.6503]
[1749230799303,2.6043058,2486.6,2486.5,1.45391]
[1749230799505,2.6043058,2486.6,2486.5,0.80363]
[1749230800309,3.4079058,2486.6,2486.5,0.80363]
[1749230800611,2.6043058,2486.6,2486.5,0.80363]
[1749230803906,3.2078,2486.8,2486.7,0.80357]
[1749230804424,5.8121058,2486.8,2486.7,0.80357]
[1749230805311,3.2078,2486.8,2486.7,0.80357]
[1749230805610,5.8121058,2486.8,2486.7,0.80357]
[1749230806905,3.2078,2486.8,2486.7,0.80357]
[1749230809105,3.2078,2486.8,2486.4,2.00913]
[1749230809106,5.8121058,2486.8,2486.6,0.80357]
[1749230809307,2.6043058,2486.7,2486.6,0.80357]
[1749230809506,2.6043058,2486.7,2486.3,0.671]
[1749230809718,3.4079758,2486.4,2486.3,0.80366]
[1749230810209,0.80375,2486.2,2486.1,0.80373]
[1749230810416,3.2078,2486.2,2486.1,0.80373]
[1749230810722,5.8121058,2486.2,2486.1,0.80373]
[1749230810905,3.8995,2486.6,2486.5,0.80363]
[1749230811405,7.3074058,2486.6,2486.5,0.80363]
[1749230812004,8.7068058,2486.6,2486.5,0.80363]
[1749230812505,7.9032058,2486.6,2486.5,0.80363]
[1749230812707,8.7068258,2486.6,2486.1,2.00941]
[1749230813014,6.10252,2486.6,2486.5,0.80363]
[1749230813211,2.6043058,2486.4,2486.3,0.80366]
[1749230813718,6.10253,2486.6,2486.5,0.80363]
[1749230814113,8.7068358,2486.6,2486.5,0.80363]
[1749230814316,7.9032058,2486.6,2486.1,2.00941]
[1749230814614,2.6043058,2486.4,2486.3,0.8037]
[1749230815221,3.8995,2486.6,2486.5,0.80363]
[1749230815405,0.6917,2486.6,2486.5,0.80363]
[1749230815605,4.4757,2486.9,2486.8,0.80354]
[1749230816007,7.0800058,2486.9,2486.8,0.80354]
[1749230816813,5.8121058,2486.9,2486.8,0.80354]
[1749230817707,2.6043058,2486.9,2486.8,0.80354]
[1749230818411,3.01e-06,2487.2,2487.1,0.80344]
[1749230821716,3.01e-06,2487.2,2487.1,2.17694]
[1749230821916,3.01e-06,2487.2,2487.1,3.76110485]
[1749230822319,3.01e-06,2487.2,2487.1,8.76110485]
[1749230822518,3.01e-06,2487.2,2487.1,9.55960379]
[1749230824318,3.01e-06,2487.2,2487.1,7.17694]
[1749230824715,3.01e-06,2487.2,2487.1,9.55960379]
[1749230825218,3.01e-06,2487.2,2487.1,7.17694]
[1749230825416,3.2078,2488.1,2488.0,0.80315]
[1749230826019,0.803,2488.5,2488.4,0.803]
[1749230826316,5.8193,2488.6,2488.5,0.80299]
[1749230826518,0.80303,2488.4,2488.3,0.80303]
[1749230826717,0.80303,2488.4,2488.2,0.00602301]
[1749230826718,0.803,2488.5,2488.4,0.803]
[1749230826913,1.2815,2488.5,2488.3,0.80303]
[1749230827113,2.6043058,2488.3,2488.2,0.00602301]
[1749230827313,2.6043058,2488.3,2488.2,0.80910301]
[1749230827720,0.80299,2488.5,2488.4,0.80299]
[1749230828014,6.62228,2488.6,2488.5,0.80299]
[1749230828222,2.6043058,2488.3,2488.2,0.80910301]
[1749230830022,3.4073558,2488.3,2488.2,0.80910301]
[1749230830613,2.6043058,2488.3,2488.2,0.80910301]
[1749230831822,3.9638058,2488.3,2488.2,0.80910301]
[1749230832824,4.5378,2488.6,2488.5,0.80299]
[1749230833319,7.1421058,2488.6,2488.5,0.80299]
[1749230836129,8.4789058,2488.6,2488.5,0.80299]
[1749230836427,7.1421058,2488.6,2488.5,0.80299]
[1749230837630,3.2078,2488.6,2488.5,0.80299]
[1749230839322,0.00602301,2488.7,2488.6,0.80295]
[1749230840527,0.00602301,2488.7,2488.6,4.01075]
[1749230844929,3.01e-06,2488.7,2488.6,9.01075]
[1749230847328,3.01e-06,2488.7,2488.6,9.02875]
[1749230850044,3.01e-06,2488.7,2488.6,10.29695]
[1749230852351,3.01e-06,2488.7,2488.6,9.02875]
[1749230852552,2.60430881,2488.7,2488.6,0.80295]
[1749230856649,3.01e-06,2488.7,2488.6,0.80295]
[1749230856847,2.60430881,2488.7,2488.6,0.80295]
[1749230863655,3.93580881,2488.7,2488.6,0.80295]
[1749230868465,2.60430881,2488.7,2488.6,0.80295]
[1749230872167,3.01e-06,2488.7,2488.6,0.80295]
[1749230872865,3.01e-06,2488.7,2488.6,10.82095]
[1749230873064,3.01e-06,2488.7,2488.6,14.02875]
[1749230873261,3.01e-06,2488.7,2488.6,14.66265]
[1749230875760,3.01e-06,2488.7,2488.6,17.83953506]
[1749230877574,3.01e-06,2488.7,2488.6,14.66265]
[1749230878569,3.01e-06,2488.7,2488.6,9.66265]
[1749230879565,3.01e-06,2488.7,2488.6,4.64465]
[1749230879867,3.01e-06,2488.7,2488.6,9.00975]
[1749230880075,3.01e-06,2488.7,2488.6,11.4126552]
[1749230880571,3.01e-06,2488.7,2488.6,6.4136552]
[1749230880771,3.01e-06,2488.7,2488.6,11.4126552]
[1749230880962,3.01e-06,2488.7,2488.6,6.4136552]
[1749230881169,3.01e-06,2488.7,2488.6,11.4126552]
[1749230882670,2.60430881,2488.7,2488.6,8.2048552]
[1749230882970,2.60430881,2488.7,2488.6,5.80195]
[1749230884868,2.60430881,2488.7,2488.6,0.80295]
[1749230887074,1.49700881,2488.7,2488.6,0.80295]
[1749230887276,1.3241,2489.0,2488.9,0.80286]
[1749230887678,2.82110881,2489.0,2488.9,0.80286]
[1749230888474,2.18090881,2489.0,2488.9,0.80286]
[1749230890275,5.38870881,2489.0,2488.9,0.80286]
[1749230890779,6.69990881,2489.0,2488.9,0.80286]
[1749230891775,2.18090881,2489.0,2488.9,0.80286]
[1749230892675,1.49700881,2489.0,2488.9,0.80286]
[1749230893578,0.66572301,2489.2,2489.1,0.80279]
[1749230893977,2.16273182,2489.2,2489.1,0.80279]
[1749230897583,0.00602301,2489.2,2489.1,5.80079]
[1749230897775,0.00602301,2489.2,2489.1,9.00859]
[1749230902185,0.00602301,2489.2,2489.1,11.4114952]
[1749230903286,0.6964,2489.5,2489.4,0.8027]
[1749230903483,3.2078,2490.1,2490.0,0.8025]
[1749230903677,3.2078,2490.1,2489.6,2.00659]
[1749230903678,0.6412,2490.2,2490.1,0.80247]
[1749230903888,2.13820881,2490.2,2490.1,0.80247]
[1749230910691,11.14845881,2490.2,2490.1,0.80247]
[1749230910896,10.34600881,2490.2,2490.1,0.80247]
[1749230911186,7.13820881,2490.2,2490.1,0.80247]
[1749230911492,2.13820881,2490.2,2490.1,0.80247]
[1749230914397,1.49700881,2490.2,2490.1,0.80247]
[1749230916719,0.67392301,2490.4,2490.3,0.80241]
[1749230916892,0.00602301,2490.4,2490.3,0.80241]
[1749230917091,1.50303182,2490.4,2490.3,0.80241]
[1749230917486,2.30541182,2490.4,2490.3,0.80241]
[1749230917798,3.65631182,2490.4,2490.3,0.80241]
[1749230918396,1.50303182,2490.4,2490.3,0.80241]
[1749230920988,0.00602301,2490.4,2490.3,0.80241]
[1749230921498,0.00602301,2490.4,2490.3,5.79441]
[1749230926101,0.00602301,2490.4,2490.3,9.00221]
[1749230926301,0.00602301,2490.4,2490.3,5.79441]
[1749230929301,2.30544182,2490.4,2490.1,5.6771]
[1749230929499,1.9614,2490.3,2490.2,0.80244]
[1749230929802,1.49700881,2490.2,2490.1,5.79446]
[1749230930598,4.70480881,2490.2,2490.0,5.79449]
[1749230930796,2.29951881,2490.0,2489.9,0.00602301]
[1749230931205,3.17987653,2490.0,2489.9,0.00602301]
[1749230931906,3.17987653,2490.0,2489.9,0.80856301]
[1749230933200,2.37736653,2490.0,2489.9,0.80856301]
[1749230933706,3.17987653,2490.0,2489.9,0.80856301]
[1749230935310,2.37736653,2490.0,2489.9,0.80856301]
[1749230936498,3.17987653,2490.0,2489.9,0.80856301]
[1749230938410,2.29951881,2490.0,2489.9,0.80856301]
[1749230939421,3.2078,2490.2,2490.1,0.80247]
[1749230939712,1.49700881,2490.2,2490.1,0.80247]
[1749230943610,0.00602301,2490.4,2490.3,0.80241]
[1749230944116,1.50303182,2490.4,2490.3,0.80241]
[1749230945115,2.30541182,2490.4,2490.3,0.80241]
[1749230945316,3.68121182,2490.4,2490.3,0.80241]
[1749230945505,2.87883182,2490.4,2490.3,0.80241]
[1749230945707,3.75836652,2490.4,2490.3,0.80241]
[1749230945910,4.56074652,2490.4,2490.3,0.80241]
[1749230946118,4.56087031,2490.4,2490.3,0.80241]
[1749230946814,0.00602301,2490.4,2490.3,0.80241]
[1749230953321,0.07735652,2490.4,2490.3,0.80241]
[1749230954325,0.00602301,2490.4,2490.3,0.80241]
[1749230955329,0.00602301,2490.4,2490.3,2.07651]
[1749230959729,10.90194122,2491.2,2490.3,10.28608]
[1749230959929,1.49700881,2491.0,2490.9,0.80221]
[1749230960227,2.37740277,2491.0,2490.9,0.80221]
[1749230965735,1.49700881,2491.0,2490.9,0.80221]
[1749230969035,4.70594301,2491.2,2491.1,0.80215]
[1749230969237,5.62168278,2491.2,2491.1,0.80215]
[1749230969433,7.11869159,2491.2,2491.1,0.80215]
[1749230969632,6.31657159,2491.2,2491.1,0.80215]
[1749230969826,7.11869159,2491.2,2491.1,0.80215]
[1749230970527,6.31657159,2491.2,2491.1,0.80215]
[1749230970833,6.31657159,2491.2,2490.9,7.64253]
[1749230971042,1.49700881,2491.1,2491.0,0.80218]
[1749230972237,0.80221,2490.9,2490.8,5.77823]
[1749230972531,6.42238031,2490.9,2490.8,0.80223]
[1749230972923,7.76838031,2490.9,2490.8,0.80223]
[1749230973538,7.76841031,2490.9,2490.8,0.80225]
[1749230974925,6.96617031,2490.9,2490.8,0.80225]
[1749230975125,5.62017031,2490.9,2490.8,0.80225]
[1749230975326,0.00602301,2491.2,2491.1,0.80215]
[1749230975547,0.92188457,2491.2,2491.1,0.80215]
[1749230975739,2.41889338,2491.2,2491.1,0.80215]
[1749230976033,4.36599338,2491.2,2491.1,0.80215]
[1749230976238,5.16811338,2491.2,2491.1,0.80215]
[1749230976440,5.80151338,2491.2,2491.1,0.80215]
[1749230976629,4.99939338,2491.2,2491.1,0.80215]
[1749230979340,5.80151338,2491.2,2491.1,0.80215]
[1749230979642,4.99939338,2491.2,2491.1,0.80215]
[1749230980641,0.80219,2491.0,2490.9,0.80219]
[1749230980841,4.70480881,2491.0,2490.7,0.6405]
[1749230981136,1.49700881,2490.8,2490.7,1.44278]
[1749230983748,1.49700881,2490.8,2490.7,0.80228]
[1749230983942,2.14900881,2490.8,2490.7,0.80228]
[1749230985147,3.06538766,2490.8,2490.7,0.80228]
[1749230985743,2.14900881,2490.8,2490.7,0.80228]
[1749230986844,3.54180881,2490.8,2490.7,0.80228]
[1749230990544,4.45820348,2490.8,2490.4,10.01494541]
[1749230990845,4.45820348,2490.8,2490.5,0.80231]
[1749230990846,1.49700881,2490.6,2490.5,0.80231]
[1749231001452,1.49700881,2490.6,2490.5,2.12861]
[1749231001946,9.61836,2491.1,2491.0,0.80218]
[1749231002153,0.93232826,2491.1,2491.0,0.80218]
[1749231002347,3.23148707,2491.1,2491.0,0.80218]
[1749231003154,6.43928707,2491.1,2491.0,0.80218]
[1749231003653,5.63713707,2491.1,2491.0,0.80218]
[1749231003858,6.43928707,2491.1,2491.0,0.80218]
[1749231004057,5.63713707,2491.1,2491.0,0.80218]
[1749231004550,4.70480881,2491.1,2491.0,0.80218]
[1749231004947,3.2078,2491.1,2491.0,0.80218]
[1749231005148,0.00602301,2491.2,2491.1,0.80215]
[1749231005654,3.2078,2491.7,2491.5,0.802]
[1749231005841,2.42761534,2491.6,2491.5,0.802]
[1749231006654,0.93060653,2491.6,2491.5,0.802]
[1749231006957,3.22960534,2491.6,2491.5,0.802]
[1749231007456,4.61440534,2491.6,2491.5,0.802]
[1749231007650,3.68379881,2491.6,2491.5,0.802]
[1749231007847,0.80205,2491.4,2491.3,0.00602301]
[1749231008052,6.4376286,2491.4,2491.3,0.00602301]
[1749231008442,7.0783286,2491.4,2491.3,0.80810301]
[1749231009356,2.4277786,2491.4,2491.3,0.80810301]
[1749231009552,3.2078,2491.7,2491.6,0.80199]
[1749231009855,4.70480881,2491.7,2491.6,0.80199]
[1749231010456,1.49700881,2491.7,2491.6,0.80199]
[1749231010659,0.00602301,2491.8,2491.7,0.80196]
[1749231012162,1.50303182,2491.8,2491.6,0.6358]
[1749231012345,0.00602301,2491.8,2491.7,0.80196]
[1749231012761,1.50303182,2491.8,2491.7,0.80196]
[1749231015460,0.00602301,2491.8,2491.7,5.76796]
[1749231015659,0.00602301,2491.8,2491.7,7.11876]
[1749231016257,0.00602301,2491.8,2491.7,5.76796]
[1749231016448,0.00602301,2491.8,2491.7,0.80196]
[1749231016449,1.50303182,2491.8,2491.7,0.80196]
[1749231024761,1.50303182,2491.8,2491.4,3.8836]
[1749231024970,0.80205,2491.4,2491.3,0.00602301]
[1749231025158,5.50685881,2491.4,2491.3,0.00602301]
[1749231025359,8.14405881,2491.4,2491.3,0.00602301]
[1749231026253,7.34200881,2491.4,2491.3,0.80809301]
[1749231027263,6.03430881,2491.4,2491.3,0.80809301]
[1749231028455,6.83635881,2491.4,2491.3,0.00602301]
[1749231029459,7.76761811,2491.4,2491.3,0.00602301]
[1749231030361,7.76761811,2491.4,2491.3,0.80810301]
[1749231030560,7.76761811,2491.4,2491.3,0.00602301]
[1749231030854,0.80221,2491.0,2490.7,6.96263]
[1749231031060,4.00997,2491.1,2491.0,0.80218]
[1749231031467,5.50697881,2491.1,2491.0,0.80218]
[1749231032970,0.80221,2491.0,2490.9,0.80218]
[1749231033269,2.74011,2491.0,2490.9,0.80218]
[1749231033468,0.80221,2490.9,2490.8,0.80823301]
[1749231033670,4.26551881,2490.9,2490.8,0.80823301]
[1749231033879,4.26551881,2490.9,2490.8,0.00602301]
[1749231035262,4.26551881,2490.9,2490.8,0.80827301]
[1749231035765,3.46330881,2490.9,2490.8,0.80827301]
[1749231035969,0.6691,2491.0,2490.9,0.80221]
[1749231036166,3.2078,2491.1,2490.8,0.80827301]